Cogmind - Beta 16 --- EXPLORER MODE // 2025.12.18 @ 14:51:55 Player: K.K.Y. Result: Destroyed by G-34 Mercenary with Small Laser Performance ------------- Evolutions (0) 0 Regions Visited (1) 200 Robots Destroyed (22) 110 Value Destroyed (297) 297 Prototype IDs (5) 100 Alien Tech Used (0) 0 Bonus (0) 0 TOTAL SCORE: 707 Bonus ------- None Cogmind --------- Core Integrity 0/250 Matter 300/300 Energy 100/100 System Corruption 0% Temperature Hot (268) Movement Treading (160) Location -10/Materials Parts ------- > --- POWER (1) -------- (None) > --- PROPULSION (2) --- Light Treads > --- UTILITY (3) ------ Sensor Array Core Shielding > --- WEAPON (2) ------- Small Laser > --- INVENTORY (5) ---- High-capacity Storage Unit Improved Terrain Scanner Mining Laser Peak State ------------ > --- POWER ------------ Ion Engine > --- PROPULSION ------- Light Treads Light Treads > --- UTILITY ---------- Sensor Array Core Shielding Light Armor Plating > --- WEAPON ----------- Small Laser Small Laser > --- INVENTORY -------- High-capacity Storage Unit Improved Terrain Scanner Mining Laser [Rating: 8] Favorites ----------- Power Ion Engine Engine Ion Engine Propulsion Light Treads Treads Light Treads Utility Sensor Array Device Sensor Array Protection Core Shielding Weapon Small Laser Energy Gun Small Laser Build | -11 -10 ------- Run | Yrd Mat Slots Evolved 1 | . 1 Power . | . . Propulsion . | . . Utility 1 | . 1 Weapon . | . . Parts Attached 8 | 6 2 Power 1 | 1 . Engine 1 | 1 . Core . | . . Reactor . | . . Propulsion 2 | 2 . Treads 2 | 2 . Leg . | . . Wheel . | . . Hover . | . . Flight . | . . Utility 3 | 1 2 Device 1 | 1 . Storage . | . . Processor . | . . Hackware . | . . Protection 2 | . 2 Artifact . | . . Weapon 2 | 2 . Energy Gun 2 | 2 . Energy Cannon . | . . Ballistic Gun . | . . Ballistic Cannon . | . . Launcher . | . . Special Weapon . | . . Impact Weapon . | . . Slashing Weapon . | . . Piercing Weapon . | . . Special Melee Weapon . | . . Unidentified Prototypes . | . . Parts Lost 4 | . 4 Power 1 | . 1 Propulsion 1 | . 1 Utility 1 | . 1 Weapon 1 | . 1 Highest Loss Streak 4 | . 4 To Critical Strikes . | . . Average Backups 2 | 1 2 Power . | . . Propulsion . | . . Utility 1 | . 1 Weapon . | . 1 Tool/Special . | . . Unused Backups 4 | . 4 Power . | . . Propulsion . | . . Utility 3 | . 3 Weapon 1 | . 1 Tool/Special . | . . Average Slot Usage (%) 90 | . 90 Engine 11 | . 11 Treads 24 | . 24 Device 12 | . 12 Protection 15 | . 15 Energy Gun 24 | . 24 Peak Build Rating 8 | 6 8 Average Rating 6 | 5 7 On Entrance 3 | . 6 Avg Prop Armor Cover (%) . | . . Naked Turns . | . . Heaviest Build 12 | 8 12 Greatest Support 40 | 40 40 Greatest Overweight (x) . | . . Average Overweight (x) . | . . Largest Inventory Capacity 5 | 5 5 Average Capacity 5 | 5 5 Most Carried 5 | 5 4 Average Carried 2 | 1 2 Final Capacity 5 | 5 5 Final Carried 3 | 2 3 Class Distribution -------------------- 100% | Hacker-Mutant Dominant Class ---------------- Hacker-Mutant | -10/Materials Resources | -11 -10 ----------- Run | Yrd Mat Matter Collected 280 | 260 20 Remotely . | . . Salvage Created 631 | 307 324 Parts 47 | 30 17 Haulers Intercepted . | . . Recyclers Shooed 3 | 2 1 Parts Field Recycled . | . . Retrieved Matter . | . . Parts Self-Destructed . | . . Prevented . | . . Parts Restored . | . . Kills | -11 -10 ------- Run | Yrd Mat Combat Hostiles Destroyed 5 | . 5 Guns 5 | . 5 Classes Destroyed 6 | 3 3 Worker 4 | 1 3 Builder 1 | . 1 Tunneler 10 | 9 1 Recycler 1 | 1 . Watcher 1 | . 1 Grunt 5 | . 5 Best Kill Streak 4 | 4 3 Combat Bots Only 2 | . 2 Max Kills in Single Turn 2 | 1 2 Gunslinging . | . . Exploded . | . . Melee . | . . Uniques/NPCs Destroyed . | . . Combat | -11 -10 -------- Run | Yrd Mat Hostile Shots Fired 113 | . 113 Missed 24 | . 24 Hits 89 | . 89 Projectile 89 | . 89 Critical Strikes 2 | . 2 Damage Taken 796 | . 796 Core 252 | . 252 Absorbed by Shields . | . . Redirected to Shielding 30 | . 30 Ignored by Resistances 456 | . 456 Core Remaining (%) 100 | 100 . Volleys Fired 57 | 20 37 Largest 2 | 2 2 Hottest 80 | 80 80 Shots Fired 109 | 40 69 Gun 109 | 40 69 Cannon . | . . Launcher . | . . Special . | . . Kinetic . | . . Thermal 109 | 40 69 Explosive . | . . Electromagnetic . | . . Robot Hit Streak 33 | 17 33 Robot Miss Streak 1 | 1 1 Penetration Max . | . . Secondary Targets . | . . Shots Hit Robots 91 | 30 61 Core Hits 35 | 12 23 Critical Kills . | . . Critical Parts Destroyed . | . . Critical Strikes . | . . Melee Attacks . | . . Impact . | . . Slashing . | . . Piercing . | . . Sneak Attacks . | . . Combat Hostiles . | . . Follow-up Attacks . | . . Damage Inflicted 1046 | 351 695 Guns 1046 | 351 695 Cannons . | . . Explosions . | . . Melee . | . . Ramming . | . . Kinetic . | . . Thermal 1046 | 351 695 Explosive . | . . Electromagnetic . | . . Impact . | . . Slashing . | . . Piercing . | . . Highest Corruption . | . . Average Corruption . | . . Corruption Purged . | . . Corruption Blocked . | . . Overload Shots . | . . Overflow Damage . | . . Projectiles . | . . Explosions . | . . Melee . | . . Knockbacks . | . . Impact . | . . Kinetic . | . . Secondary . | . . Self-Inflicted Damage . | . . Shots . | . . Rammed . | . . Targets Rammed . | . . Kicked . | . . Crushed . | . . Highest Temperature 614 | 108 614 Average Temperature 138 | 39 187 Received Heat Transfer 657 | . 657 Effects 11 | . 11 Shutdowns 3 | . 3 Energy Bleed 1 | . 1 Interference 2 | . 2 Damage (minor) 2 | . 2 Damage (major) 1 | . 1 Damage (core) 2 | . 2 Siege Activations . | . . Martial Activations . | . . Shielding Activations . | . . Robots Disrupted . | . . Combat Hostiles . | . . Robots Corrupted . | . . Combat Hostiles . | . . Parts Fried . | . . Impact Corruptions . | . . Robots Melted . | . . Combat Hostiles . | . . Parts Melted 3 | . 3 Heat Transferred 2375 | 775 1600 Parts Sabotaged . | . . Parts Stolen . | . . Parts Stripped . | . . Power Chain Reactions . | . . Alert | -11 -10 ------- Run | Yrd Mat Maximum Alert Level . | . . Low Security (%) 100 | 100 100 Level 1 . | . . Level 2 . | . . Level 3 . | . . Level 4 . | . . Level 5 . | . . High Security . | . . Max Security . | . . Peak Influence 50 | 10 50 Initial . | . . Average 2 | 2 2 Influence Increases 235 | 55 180 Destroy 0b10 Robot/C 100 | . 100 Destroy 0b10 Robot/NC 85 | 55 30 Destroy Leader 22 | . 22 Successful Hack 13 | . 13 Lose Combat Pursuer 15 | . 15 Influence Decreases 215 | 55 160 Time Decay 195 | 55 140 Lost Part 20 | . 20 Squads Dispatched . | . . Investigation . | . . Extermination . | . . Reinforcement . | . . Assault . | . . Garrison . | . . Intercept . | . . Searches Triggered . | . . Construction Impeded . | . . Haulers Reinforced . | . . Active Scanning Responses . | . . Cargo Convoy Interrupts . | . . Stealth | -11 -10 --------- Run | Yrd Mat Distress Signals . | . . Communications Jammed . | . . Distress Signals . | . . Times Spotted 15 | . 15 Peak Tracking Total 8 | . 8 Tactical Retreats 1 | . 1 Traps | -11 -10 ------- Run | Yrd Mat Traps Triggered 1 | . 1 Indirectly . | . . Trap Hack Attempts . | . . Triggered . | . . Disarmed . | . . Reprogrammed 6 | . 6 Reused . | . . Traps Extracted . | . . Installed . | . . Triggered . | . . Machines | -11 -10 ---------- Run | Yrd Mat Machines Disabled . | . . Max in Single Turn . | . . Machines Repaired . | . . Machines Dismantled . | . . Machines Sabotaged . | . . Overloaded Fab Kills . | . . Hacking | -11 -10 --------- Run | Yrd Mat Machines Accessed 7 | . 7 Terminals 6 | . 6 Fabricators . | . . Repair Stations . | . . Recycling Units 1 | . 1 Scanalyzers . | . . Garrison Access . | . . Total Hacks 12 | . 12 Successful 12 | . 12 Failed . | . . Catastrophic . | . . Database Lockouts . | . . Manual 6 | . 6 Terminals 11 | . 11 Fabricators . | . . Repair Stations . | . . Recycling Units 1 | . 1 Scanalyzers . | . . Garrison Access . | . . Terminal Hacks 5 | . 5 Robot Analysis 1 | . 1 Prototype ID Bank 2 | . 2 Reprogram Traps 2 | . 2 Fabricator Hacks . | . . Repair Station Hacks . | . . Recycling Unit Hacks 1 | . 1 Retrieve Components 1 | . 1 Scanalyzer . | . . Garrison Access Hacks . | . . Unauthorized Hacks 6 | . 6 Terminals 6 | . 6 Botnet 6 | . 6 Fabricators . | . . Repair Stations . | . . Recycling Units . | . . Scanalyzers . | . . Garrison Access . | . . Data Cores Recovered . | . . Used . | . . Hacking Detections 1 | . 1 Full Trace Events 1 | . 1 Feedback Events . | . . Feedback Blocked . | . . Robot Schematics Acquired . | . . Robots Built . | . . Authchips . | . . Time . | . . Total Robot Build Rating . | . . Part Schematics Acquired . | . . Parts Built . | . . Authchips . | . . Time . | . . Total Part Build Rating . | . . Part Studies Acquired . | . . Parts Repaired . | . . Time . | . . Parts Recycled . | . . Recycled Matter . | . . Retrieved Matter . | . . Retrieved Components 2 | . 2 Parts Scanalyzed . | . . Part Schematics Acquired . | . . Parts Damaged . | . . Bothacking | -11 -10 ------------ Run | Yrd Mat Used RIF Installer . | . . Robots Hacked . | . . Non-combat . | . . Combat . | . . Robot Hacks Applied . | . . Relay Couplers Released . | . . Fabnet Peak Effective % . | . . Robots Rewired . | . . Allies Hacked . | . . Hacks Repelled . | . . Allies | -11 -10 -------- Run | Yrd Mat Total Allies . | . . Largest Group . | . . Highest-Rated Group . | . . Highest-Rated Ally . | . . Total Orders . | . . Ally Attacks . | . . Total Damage . | . . Kills . | . . Allies Corrupted . | . . Allies Melted . | . . Intel | -11 -10 ------- Run | Yrd Mat Active Infowar (turns) 1244 | 222 1022 Sensors 1244 | 222 1022 Robot Analysis Total 1 | . 1 Derelict Logs Recovered . | . . Drone Launches . | . . Drone Recoveries . | . . Exploration | -11 -10 ------------- Run | Yrd Mat Turns Passed 1304 | 252 1052 Spaces Moved 694 | 110 584 Core 22 | 22 . Treads 672 | 88 584 Legs . | . . Wheels . | . . Hover . | . . Flight . | . . Fastest Speed 50 | 50 160 Average Speed 156 | 138 160 Slowest Speed 160 | 160 160 Overloaded Moves . | . . Propulsion Burnouts . | . . Robots Hopped . | . . Potential Cave-ins . | . . Cave-ins Triggered . | . . Exploration Rate (%) 39 | 5 74 Regions Visited 1 Branch Regions . Pre-discovered Areas . | . . Known Exits Taken 1 | 1 . Unknown Exits Taken . | . . Scrap Searched . | . . Spaces Dug . | . . Terrain Destroyed . | . . Melee . | . . Projectile . | . . AOE . | . . Terrain Rammed . | . . Walls Destroyed . | . . Machines Disabled . | . . Actions | -11 -10 --------- Run | Yrd Mat Total 803 | 170 633 Wait 33 | 28 5 Move 693 | 109 584 Hop . | . . Pick Up 11 | 7 4 Fast Attach 1 | 1 . Attach 7 | 5 2 Detach . | . . Swap . | . . Drop 1 | . 1 Fire 57 | 20 37 Melee . | . . Ram . | . . Kick . | . . Crush . | . . Escape Stasis . | . . Rewire . | . . Trap . | . . Miscellaneous . | . . Route ------- -11/Scrapyard -10/Materials (discovered 3 exits: *Mat x2 / *Sub) History --------- Turn | Location | Event 8 | -11/Scrapyard | Identified exit to Materials 8 | -11/Scrapyard | Discovered exit to Materials (range 15) 253 | -11/Scrapyard | Entered Materials 253 | -10/Materials | Evolved 1 slot: Utility x1 306 | -10/Materials | Build established: Hacker-Mutant 651 | -10/Materials | Identified exit to Subcaves 651 | -10/Materials | Discovered exit to Subcaves (range 8) 694 | -10/Materials | Identified exit to Materials 694 | -10/Materials | Discovered exit to Materials (range 5) 952 | -10/Materials | Discovered exit to Materials (range 12) 1269 | -10/Materials | Core integrity fell below 50% 1278 | -10/Materials | Core integrity fell below 20% 1305 | -10/Materials | Destroyed by G-34 Mercenary with Small Laser Last Messages --------------- 01263_ K-01 Serf collects debris. 01267_ G-47 Trooper destroyed. 01267_ Critical hit (Burn: +37). 01269_ Power failure, Ion Engine shutdown. 01269_ Overheating: Core damaged (-47). 01271_ K-01 Serf collects debris. 01272_ Overheating: Energy bleed (-57). 01274_ Overheating: Lgt. Treads damaged (-2). 01275_ Overheating: System interference. 01275_ Sml. Laser temporarily disabled. 01275_ Sensor Array temporarily disabled. 01275_ Sml. Laser destroyed. 01275_ Critical hit (Burn: +37). 01278_ Overheating: Core damaged (-37). 01279_ Overheating: Lgt. Treads damaged (-6). 01280_ Power failure, Ion Engine shutdown. 01283_ Overheating: Lgt. Treads damaged (-2). 01284_ Lgt. Treads destroyed. 01294_ Ion Engine destroyed. 01296_ G-34 Mercenary destroyed. Map ----- +----------------------------------------------------+ | # ##" """ #?????????????????????? | | ###+#### """ #?????????????????????? | | # """ #?????????????????????? | | / #?????????????????????? | | # """ #?????????????????????? | | #+######### """ #?????????????????????? | | #???# """ #?????????????????????? | | #???# """ #?????????????????????? | | " #???# """ #?????????????????????? | | "" #???# #?????????????????????? | | "" #???#######??????????????????????? | | "" #???????????????????? ?????????? | | " #???????????????????? #????????? | | #???????????????????? #????????? | | #######???????????????????? /????????? | | ??????????????????????????? #????????? | | ??????????????????????????? #????????? | | ??????????????????????????? #????????? | | ??????????????????????????# #????????? | | ??????????????????????????+ #????????? | | ##+##?????????????????????# #????????? | | # #???????????########### #????????? | | # #???????????# # ####?????? | | # +???????????# # !##????? | | # #???????????# # !#????? | | # #???????????# """ """@gg !#????? | | #???????????# """ """!#g u !#????? | | #???????????# """ """ # !#????? | | #???????????? #%! !##????? | | #???????????? = a #= ####?????? | | #???????????########### #????????? | | ####################### #????????? | | %=%|= #????????? | | ####################### #????????? | | #?????????????????????# #????????? | | ######????????????????# ^ #????????? | | #######??????????# #????????? | | # ! #??????????# ^ #????????? | | ^ T # #??????????# #????????? | | """" # #??????????# #????????? | | """" # #??????????# #????????? | | """" # """ #??????????? *%#????????? | | # """ #??????????? =#????????? | | + """ #??????????? ????????? | | """" # #??????????? ????????? | | """" # ""#??????????? " ????????? | | """" # T"#??????????? ????????? | | # ""#??????????? ??????????? | | # #???????????????????????? | | """" #######???????????????????????? | +----------------------------------------------------+ Best States ------------- Heat Dissipation 25 Energy Generation 10 Energy Capacity 250 Matter Stores 300 Matter Capacity 300 Sight Range 16 Robot Scan Range 14 Terrain Scan Density 10 Armor Coverage 150 Resistance: KI 35 Resistance: TH 35 Resistance: EX 35 Resistance: EM 35 Resistance: I 35 Resistance: S 35 Resistance: P 35 Core Shielding 20 Evasion (%) 50 Recoil Reduction 2 Offensive Hacking 20 Item Schematics ----------------- None Robot Schematics ------------------ None Fabricated ------------ Nothing Repaired ---------- Nothing Studied --------- None Alien Tech Used ----------------- None Achievements -------------- None Challenges ------------ None Game ------ Seed ChromionLaserFrame Manual? 0 Play Time 00:07:58 Cumulative 209.9 hours Start 2025.12.18 @ 14:45:13 End 2025.12.18 @ 14:51:55 Sessions 1 Manual Loads 0 Difficulty Explorer Special Mode None Game No. 318 Rogue 0 Adventurer 0 Explorer 318 Win Type - Total 0 Types 0/0/0/0/0/0/0/0/0/0 Lore% 71 Gallery% 68 Achievement% 53 Wizard Run 0 Options --------- Layout 1 ASCII 0 Keyboard 0 Movement Mouse Keybinds 0 Fullscreen 1 Font 24/Smallcaps Map View 50x35 Zoom Use 0% Tactical HUD 1 Map Filters NONE Filters NONE Steam 1 RUN: f07d3f42-2d04-499a-89d7-496a70458360